Cogmind - Beta 15 @@@ ROGUE MODE // 2025.06.10 @ 01:21:15 Player: Morgan Result: Destroyed by 29-QCH(R) with Subdweller Machine Gun Performance ------------- Evolutions (0) 0 Regions Visited (2) 400 Robots Destroyed (24) 120 Value Destroyed (346) 346 Prototype IDs (0) 0 Alien Tech Used (0) 0 Bonus (0) 0 TOTAL SCORE: 866 Bonus ------- None Cogmind --------- Core Integrity 0/250 Matter 235/300 Energy 250/250 System Corruption 0% Temperature Cool (0) Movement Walking (260) Ox2 Location -10/Subcaves Parts ------- > --- POWER (1) -------- Ion Engine > --- PROPULSION (2) --- Aluminum Leg > --- UTILITY (2) ------ Large Storage Unit Improved Terrain Scanner > --- WEAPON (2) ------- Battle Cannon > --- INVENTORY (15) --- Light Ion Engine Light Ion Engine Makeshift Light Armor Plating Riot Gun Small Laser Subdweller Laser Battle Cannon Peak State ------------ > --- POWER ------------ Ion Engine > --- PROPULSION ------- Aluminum Leg Aluminum Leg > --- UTILITY ---------- Large Storage Unit Makeshift Light Armor Plating > --- WEAPON ----------- Small Laser Battle Cannon > --- INVENTORY -------- Light Ion Engine Light Ion Engine Improved Terrain Scanner Small Laser [Rating: 11] Favorites ----------- Power Ion Engine Engine Ion Engine Power Core Light Nuclear Core Propulsion Aluminum Leg Treads Light Treads Leg Aluminum Leg Utility Large Storage Unit Device Improved Terrain Scanner Storage Large Storage Unit Protection Makeshift Light Armor Plating Weapon Small Laser Energy Gun Small Laser Ballistic Gun Light Assault Rifle Ballistic Cannon Battle Cannon Special Weapon Mining Laser Build | -11 -10 -10 ------- Run | Yrd Mat Sub Slots Evolved . | . . . Power . | . . . Propulsion . | . . . Utility . | . . . Weapon . | . . . Parts Attached 20 | 8 8 4 Power 3 | 1 2 . Engine 2 | 1 1 . Core 1 | . 1 . Reactor . | . . . Propulsion 5 | 2 1 2 Treads 3 | 2 1 . Leg 2 | . . 2 Wheel . | . . . Hover . | . . . Flight . | . . . Utility 6 | 2 3 1 Device 2 | 1 1 . Storage 3 | 1 2 . Processor . | . . . Hackware . | . . . Protection 1 | . . 1 Artifact . | . . . Weapon 6 | 3 2 1 Energy Gun 2 | 1 1 . Energy Cannon . | . . . Ballistic Gun 1 | 1 . . Ballistic Cannon 1 | . . 1 Launcher . | . . . Special Weapon 2 | 1 1 . Impact Weapon . | . . . Slashing Weapon . | . . . Piercing Weapon . | . . . Special Melee Weapon . | . . . Unidentified Prototypes . | . . . Parts Lost 9 | . 1 8 Power 1 | . . 1 Propulsion 3 | . . 3 Utility 1 | . . 1 Weapon 4 | . 1 3 Highest Loss Streak 6 | . 1 6 To Critical Strikes . | . . . Average Backups 4 | 2 5 5 Power 2 | . 2 2 Propulsion . | . . . Utility . | . . . Weapon 1 | 1 1 1 Tool/Special . | . . . Unused Backups 4 | . . 4 Power 1 | . . 1 Propulsion . | . . . Utility . | . . . Weapon 3 | . . 3 Tool/Special . | . . . Average Slot Usage (%) 91 | . 92 90 Engine 11 | . 4 13 Core 2 | . 9 . Treads 6 | . 22 . Leg 14 | . . 19 Device 9 | . 13 8 Storage 14 | . 14 14 Protection 3 | . . 5 Energy Gun 13 | . 9 15 Ballistic Gun 3 | . 14 . Ballistic Cannon 9 | . . 12 Peak Build Rating 11 | 9 10 11 Average Rating 9 | 8 8 9 On Entrance 6 | . 9 10 Naked Turns . | . . . Heaviest Build 33 | 11 28 33 Greatest Support 40 | 40 40 40 Greatest Overweight (x) 7 | . 1 7 Average Overweight (x) 1 | . . 1 Largest Inventory Capacity 15 | 8 15 15 Average Capacity 13 | 7 12 15 Most Carried 8 | 5 8 8 Average Carried 4 | 2 5 5 Final Capacity 15 | 8 15 15 Final Carried 8 | 4 8 7 Class Distribution -------------------- 100% | Mutant Dominant Class ---------------- Mutant | -10/Materials Mutant | -10/Subcaves Resources | -11 -10 -10 ----------- Run | Yrd Mat Sub Matter Collected 612 | 334 128 150 Remotely . | . . . Salvage Created 747 | 365 279 103 Parts 50 | 26 18 6 Haulers Intercepted . | . . . Recyclers Shooed 2 | 2 . . Parts Field Recycled . | . . . Retrieved Matter . | . . . Parts Self-Destructed 19 | . . 19 Prevented . | . . . Kills | -11 -10 -10 ------- Run | Yrd Mat Sub Combat Hostiles Destroyed 10 | . 7 3 Guns 9 | . 7 2 Cannons 1 | . . 1 Classes Destroyed 7 | 3 2 2 Worker 4 | 4 . . Tunneler 8 | 8 . . Recycler 2 | 1 1 . Swarmer 4 | . 3 1 Grunt 4 | . 4 . Sentry 1 | . . 1 Subdweller 1 | . . 1 Best Kill Streak 4 | 3 4 2 Combat Bots Only 3 | . 3 2 Max Kills in Single Turn 1 | 1 1 1 Gunslinging . | . . . Exploded . | . . . Melee . | . . . Uniques/NPCs Destroyed . | . . . Combat | -11 -10 -10 -------- Run | Yrd Mat Sub Hostile Shots Fired 126 | . 88 38 Missed 25 | . 18 7 Hits 101 | . 70 31 Projectile 101 | . 70 31 Critical Strikes 1 | . 1 . Damage Taken 1209 | . 646 563 Core 259 | . 93 166 Absorbed by Shields . | . . . Regen/Repaired (Parts) 123 | . 123 . Core Remaining (%) 100 | 100 . . Volleys Fired 123 | 54 36 33 Largest 2 | 2 2 2 Hottest 120 | 60 120 80 Shots Fired 196 | 79 52 65 Gun 162 | 79 46 37 Cannon 28 | . . 28 Launcher . | . . . Special 6 | . 6 . Kinetic 118 | 54 36 28 Thermal 78 | 25 16 37 Explosive . | . . . Electromagnetic . | . . . Robot Hit Streak 13 | 9 13 5 Robot Miss Streak 5 | 5 3 2 Penetration Max . | . . . Secondary Targets . | . . . Shots Hit Robots 90 | 44 33 13 Core Hits 43 | 20 17 6 Critical Kills 1 | . 1 . Critical Parts Destroyed . | . . . Critical Strikes 1 | . 1 . Destroy 1 | . 1 . Melee Attacks . | . . . Impact . | . . . Slashing . | . . . Piercing . | . . . Sneak Attacks . | . . . Combat Hostiles . | . . . Follow-up Attacks . | . . . Damage Inflicted 925 | 412 343 170 Guns 816 | 412 293 111 Cannons 59 | . . 59 Explosions . | . . . Melee . | . . . Ramming 2 | . 2 . Kinetic 477 | 226 192 59 Thermal 446 | 186 149 111 Explosive . | . . . Electromagnetic . | . . . Impact . | . . . Slashing . | . . . Piercing . | . . . Highest Corruption . | . . . Average Corruption . | . . . Corruption Purged . | . . . Corruption Blocked . | . . . Overload Shots . | . . . Overflow Damage 4 | . 4 . Projectiles 4 | . 4 . Explosions . | . . . Melee . | . . . Knockbacks . | . . . Impact . | . . . Kinetic . | . . . Secondary . | . . . Self-Inflicted Damage . | . . . Shots . | . . . Rammed 1 | . 1 . Targets Rammed 1 | . 1 . Kicked . | . . . Crushed . | . . . Highest Temperature 40 | 40 26 . Average Temperature 15 | 18 10 . Received Heat Transfer 186 | . 135 51 Siege Activations . | . . . Martial Activations . | . . . Shielding Activations . | . . . Robots Disrupted . | . . . Combat Hostiles . | . . . Robots Corrupted . | . . . Combat Hostiles . | . . . Parts Fried . | . . . Impact Corruptions . | . . . Robots Melted . | . . . Combat Hostiles . | . . . Parts Melted . | . . . Heat Transferred 1000 | 425 325 250 Parts Sabotaged . | . . . Parts Stolen . | . . . Parts Stripped . | . . . Power Chain Reactions . | . . . Alert | -11 -10 -10 ------- Run | Yrd Mat Sub Maximum Alert Level . | . . . Low Security (%) 100 | 100 100 . Level 1 . | . . . Level 2 . | . . . Level 3 . | . . . Level 4 . | . . . Level 5 . | . . . High Security . | . . . Max Security . | . . . Peak Influence 56 | 10 56 . Initial . | . . . Average 6 | 1 9 . Influence Increases 283 | 65 178 40 Destroy 0b10 Robot/C 180 | . 140 40 Destroy 0b10 Robot/NC 70 | 65 5 . Destroy Leader 30 | . 30 . Destroy Structure 3 | . 3 . Influence Decreases 283 | 65 139 79 Entered New Map 19 | . . 19 Time Decay 234 | 65 129 40 Lost Part 30 | . 10 20 Squads Dispatched 2 | . 2 . Investigation 1 | . 1 . Extermination . | . . . Reinforcement 1 | . 1 . Assault . | . . . Garrison . | . . . Intercept . | . . . Searches Triggered . | . . . Construction Impeded . | . . . Haulers Reinforced . | . . . Active Scanning Responses . | . . . Cargo Convoy Interrupts . | . . . Stealth | -11 -10 -10 --------- Run | Yrd Mat Sub Distress Signals 1 | . 1 . Communications Jammed . | . . . Distress Signals . | . . . Times Spotted 16 | . 11 5 Peak Tracking Total 3 | . 3 2 Tactical Retreats . | . . . Traps | -11 -10 -10 ------- Run | Yrd Mat Sub Traps Triggered 3 | . 1 2 Indirectly . | . . . Trap Hack Attempts . | . . . Triggered . | . . . Disarmed . | . . . Reprogrammed . | . . . Reused . | . . . Traps Extracted . | . . . Installed . | . . . Triggered . | . . . Machines | -11 -10 -10 ---------- Run | Yrd Mat Sub Machines Disabled . | . . . Max in Single Turn . | . . . Machines Repaired . | . . . Machines Dismantled . | . . . Machines Sabotaged . | . . . Overloaded Fab Kills . | . . . Hacking | -11 -10 -10 --------- Run | Yrd Mat Sub Machines Accessed 4 | . 4 . Terminals 2 | . 2 . Fabricators . | . . . Repair Stations 1 | . 1 . Recycling Units 1 | . 1 . Scanalyzers . | . . . Garrison Access . | . . . Total Hacks 9 | . 9 . Successful 5 | . 5 . Failed 4 | . 4 . Catastrophic . | . . . Database Lockouts . | . . . Manual 1 | . 1 . Terminals 3 | . 3 . Fabricators . | . . . Repair Stations 5 | . 5 . Recycling Units 1 | . 1 . Scanalyzers . | . . . Garrison Access . | . . . Terminal Hacks 2 | . 2 . Record 1 | . 1 . Recall Investigation 1 | . 1 . Fabricator Hacks . | . . . Repair Station Hacks 2 | . 2 . Scan Component 1 | . 1 . Repair 1 | . 1 . Recycling Unit Hacks 1 | . 1 . Retrieve Components 1 | . 1 . Scanalyzer . | . . . Garrison Access Hacks . | . . . Unauthorized Hacks . | . . . Terminals . | . . . Fabricators . | . . . Repair Stations . | . . . Recycling Units . | . . . Scanalyzers . | . . . Garrison Access . | . . . Data Cores Recovered . | . . . Used . | . . . Hacking Detections 2 | . 2 . Full Trace Events 1 | . 1 . Feedback Events . | . . . Feedback Blocked . | . . . Robot Schematics Acquired . | . . . Robots Built . | . . . Authchips . | . . . Time . | . . . Total Robot Build Rating . | . . . Part Schematics Acquired . | . . . Parts Built . | . . . Authchips . | . . . Time . | . . . Total Part Build Rating . | . . . Parts Repaired 1 | . 1 . Time 26 | . 26 . Parts Recycled . | . . . Recycled Matter . | . . . Retrieved Matter . | . . . Retrieved Components 3 | . 3 . Parts Scanalyzed . | . . . Part Schematics Acquired . | . . . Parts Damaged . | . . . Bothacking | -11 -10 -10 ------------ Run | Yrd Mat Sub Used RIF Installer . | . . . Robots Hacked . | . . . Non-combat . | . . . Combat . | . . . Robot Hacks Applied . | . . . Relay Couplers Released . | . . . Fabnet Peak Effective % . | . . . Robots Rewired . | . . . Allies Hacked . | . . . Hacks Repelled . | . . . Allies | -11 -10 -10 -------- Run | Yrd Mat Sub Total Allies . | . . . Largest Group . | . . . Highest-Rated Group . | . . . Highest-Rated Ally . | . . . Total Orders . | . . . Ally Attacks . | . . . Total Damage . | . . . Kills . | . . . Allies Corrupted . | . . . Allies Melted . | . . . Intel | -11 -10 -10 ------- Run | Yrd Mat Sub Active Infowar (turns) 1971 | 456 62 1453 Terrain 1971 | 456 62 1453 Robot Analysis Total . | . . . Derelict Logs Recovered 1 | . . 1 Drone Launches . | . . . Drone Recoveries . | . . . Exploration | -11 -10 -10 ------------- Run | Yrd Mat Sub Turns Passed 3838 | 525 823 2490 Spaces Moved 1601 | 249 326 1026 Core 21 | 13 . 8 Treads 590 | 236 326 28 Legs 990 | . . 990 Wheels . | . . . Hover . | . . . Flight . | . . . Fastest Speed 50 | 50 160 160 Average Speed 204 | 154 179 224 Slowest Speed 400 | 160 240 400 Overloaded Moves . | . . . Propulsion Burnouts . | . . . Robots Hopped . | . . . Potential Cave-ins . | . . . Cave-ins Triggered . | . . . Exploration Rate (%) 28 | 12 38 35 Regions Visited 2 Branch Regions 1 Pre-discovered Areas . | . . . Known Exits Taken . | . . . Unknown Exits Taken 2 | 1 1 . Scrap Searched . | . . . Spaces Dug 7 | . 1 6 Terrain Destroyed 9 | . 3 6 Melee . | . . . Projectile 9 | . 3 6 AOE . | . . . Terrain Rammed . | . . . Walls Destroyed . | . . . Machines Disabled . | . . . Actions | -11 -10 -10 --------- Run | Yrd Mat Sub Total 1977 | 322 510 1145 Wait 193 | . 124 69 Move 1599 | 248 325 1026 Hop . | . . . Pick Up 24 | 11 8 5 Fast Attach . | . . . Attach 25 | 8 8 9 Detach 8 | 1 4 3 Swap 2 | . 2 . Drop 2 | . 2 . Fire 123 | 54 36 33 Melee . | . . . Ram . | . . . Kick . | . . . Crush 1 | . 1 . Escape Stasis . | . . . Rewire . | . . . Trap . | . . . Miscellaneous . | . . . Route ------- -11/Scrapyard -10/Materials -10/Subcaves (discovered 1 exit: [*Mat]) History --------- Turn | Location | Event 4 | -11/Scrapyard | Discovered new exit (range 15) 526 | -11/Scrapyard | Entered Materials 527 | -10/Materials | Build established: Mutant 803 | -10/Materials | Repaired Lgt. Treads? 1163 | -10/Materials | Discovered new exit (range 2) 1349 | -10/Materials | Entered Subcaves 1350 | -10/Subcaves | Approached by a straggling Scientist 1402 | -10/Subcaves | Core integrity fell below 50% 1422 | -10/Subcaves | Discovered new exit (range 16) 1441 | -10/Subcaves | Lost 6 parts (1p2n1u2w) 1627 | -10/Subcaves | Shifting Twisted Machinery released Battle Cannon 1630 | -10/Subcaves | Shifting Twisted Machinery released Sub. Laser 3381 | -10/Subcaves | Learned Materials emergency access door positions 3418 | -10/Subcaves | Core integrity fell below 20% 3839 | -10/Subcaves | Destroyed by 29-QCH(R) with Subdweller Machine Gun Last Messages --------------- B2-MHR(c): "We're getting close, I can feel it." Aluminum Leg destroyed. PJ-KHB(R) destroyed. Acquired 53 matter. Tech Extrapolator violently self-destructs. Acquired 4 matter. Subatomizers dissect the Lgt. Ion Engine. Acquired 11 matter. Acquired 7 matter. Acquired derelict log, extracted data. Data stored: Materials emergency access points. Triggered Piercing Trap. Spikes shoot up from the floor. Triggered Piercing Trap. Spikes shoot up from the floor. Critical hit (Impale). Acquired Battle Cannon. Acquired Riot Gun. Sml. Laser destroyed. Map ----- +----------------------------------------------------+ | ?????????????????????????????????????????????????? | | ?????????????????????????????????????????????????? | | ?????????????????????????????????????????????????? | | ?????????????????????????????????????????????????? | | ?????????????????????????????????????????????????? | | ?????????????????????????????????????????????????? | | ?????????????????????????????????????????????????? | | ?????????????????????????????????????????????????? | | ?????????????????????????????????????????????????? | | ?????????????????????????????????????????????????? | | ?????????????????????????????????????????????????? | | ??????????????????##?????????????????????????????? | | ????????????????# ####?????????????????????????? | | ??????????????? ?????????????#???????????? | | ???????????????? ???#???????????#??? ????? | | ????????????????# ???????????????#??# ???? | | ?????????????#### ??#???????????##?? ??? | | ???????????? ###??????????# ## #??? | | ????????????" ###????????# #??? | | ????????????" R ??##????? ???? | | ?????????????" R ??? #???? #???? | | ???????????????? ???## #??? ##??? | | ??????????????????# ?????# ##? ??? | | ???????????????????# ####???# ## ## ????? | | ??????????????????## ##### #?# #?????? | | ???????????????????# @ # ### ###??? | | ???????????????????# ## # ##?#? | | ???????????????????# ??# ### #### | | ??????????????????## ???## #?# | | ?????????????????????????# ###### | | ?????????????????????????## #???# | | ??????????????????????????## #??# | | ???????????????????????????########## | | ???????????????????????????????????## ### | | ???????????????????????????????#??#?# ####?## | | ?#??????????????????????????????#???## ###???### | | ?????????????????????????????????????# #?????#?# | | ?????????????????????????????????????# #?????#?? | | ??????????????????#???#??????????????# ###????## | | ????????????????????#???#????????????# #### ## | | ?????##?????????????????????#??????### ## | | ????????????????????#?????????#?????# ## | | #?????????#?????#????????????????##?# ?# ### | | ??????????#????#??#??????#??????????# ??###??# | | ?#??????????????????????????????????# ##????#?## | | ???????#???????#???#?????????#?????## ##??##### | | ?????#?#?#????#?????????###?#???##### ! ##???# | | ??#?????#????#????????### ##???## #??## | | ???????????????#??????# #?### #??# | | ??????#???????????????# ##?## ### ##?# # | +----------------------------------------------------+ Best States ------------- Heat Dissipation 35 Energy Generation 14 Energy Capacity 250 Matter Stores 300 Matter Capacity 300 Sight Range 16 Terrain Scan Range 16 Terrain Scan Density 10 Armor Coverage 100 Evasion (%) 40 Recoil Reduction 2 Item Schematics ----------------- None Robot Schematics ------------------ None Fabricated ------------ Nothing Repaired ---------- Lgt. Treads | 12% | -10/Materials Alien Tech Used ----------------- None Achievements -------------- GoHome() Challenges ------------ None Game ------ Seed GravjetHoverNanoactuators Manual? 0 Play Time 00:20:19 Cumulative 2.4 hours Start 2025.06.10 @ 00:58:21 End 2025.06.10 @ 01:21:15 Sessions 1 Manual Loads 0 Difficulty Rogue Special Mode None Game No. 10 Rogue 10 Adventurer 0 Explorer 0 Win Type - Total 0 Types 0/0/0/0/0/0/0/0/0/0 Lore% 2 Gallery% 6 Achievement% 6 Wizard Run 0 Options --------- Layout 1 ASCII 0 Keyboard 0 Movement Mouse Keybinds 0 Fullscreen 1 Font 24/Smallcaps Map View 25x17 Zoom Use 98% Tactical HUD 0 Map Filters NONE Filters NONE Steam 1 RUN: 04ce7c4a-23cb-4720-a1d3-02fd52342704